Workbook

Sheet Example
E1: Calculate Correction | H1: Forecast Reduction | J1: =J2/100 -> 0 | P1: Nameplate rating | Q1: 30 | R1: MW
E2: Reset Correction | H2: Constraint Constant | J2: 0
L5: D <= 10% | M5: Km>1MW | N5: Kp>5% | O5: Compliant
L6: =IF(MAX(L9:L1736) <=0.1, TRUE, FALSE) -> FALSE | M6: =IF(MAX(M9:M1736) > 1, TRUE, FALSE) -> TRUE | N6: =IF(MAX(N9:N1736) > 0.05, TRUE, FALSE) -> TRUE | O6: =AND(L6, NOT(M6), NOT(N6)) -> FALSE | P6: Forecasts >0 over 24hrs | Q6: =COUNTIF(I9:I1736, ">0") -> 857
B7: Actual Time at start of dispatch interval | C7: Indices | E7: Time Firm Offer was made | F7: Forecast made at time | G7: Time forecast applies | H7: Firm Offer Value G(t) | I7: Forecast Value F(t1,t2) | J7: Adjusted Forecast | K7: Ft1,t2 - Gt | L7: D - over 24 hour period | M7: KM | N7: KP | O7: D Numerator | P7: Calculation | Q7: D Denominator | R7: Calculation
C8: j | D8: i | E8: t=-(5j-5) | F8: t1= -(5j–5+5i) | G8: t2=-(5j-5) | H8: MW | I8: MW | K8: MW | L8: % | M8: MW | N8: % | O8: No of times forecast > firm offer over 24hrs | P8: Formula | Q8: Forecasts > 0 over 24 hours | R8: Formula
B9: 11:35:00 | C9: 1 | D9: 1 | E9: 0 | F9: =-(5*C9-5+5*D9) -> -5 | G9: =-(5*C9-5) -> 0 | H9: 20 | I9: 5 | J9: =I9-($J$1*I9) -> 5 | K9: =IF((J9-H9) < 0, 0, J9-H9) -> 0 | L9: =O9/Q9 -> 0.1435239207 | M9: =MAX(K9:K14) -> 2 | N9: =MAX(K9:K14)/$Q$1 -> 0.06666666667 | O9: =IF((H9-J9)<0, O10+1, O10) -> 123 | P9: G0 - F(-5,0) < 0 | Q9: =$Q$6 -> 857 | R9: F(-5,0) > 0
B10: 11:35:00 | C10: 1 | D10: 2 | E10: 0 | F10: =-(5*C10-5+5*D10) -> -10 | G10: =-(5*C10-5) -> 0 | H10: 20 | I10: 5 | J10: =I10-($J$1*I10) -> 5 | K10: =IF((J10-H10) < 0, 0, J10-H10) -> 0 | L10: =O10/Q10 -> 0.1435239207 | O10: =IF((H10-J10)<0, O11+1, O11) -> 123 | P10: G0 - F(-10,0) < 0 | Q10: =$Q$6 -> 857 | R10: F(-10,0) > 0
B11: 11:35:00 | C11: 1 | D11: 3 | E11: 0 | F11: -15 | G11: 0 | H11: 20 | I11: 5 | J11: 5 | K11: 0 | L11: 0.1435239207 | O11: 123 | P11: G0 - F(-15,0) < 0 | Q11: 857 | R11: F(-15,0) > 0
B12: 11:35:00 | C12: 1 | D12: 4 | E12: 0 | F12: -20 | G12: 0 | H12: 20 | I12: 21 | J12: 21 | K12: 1 | L12: 0.1435239207 | O12: 123 | P12: G0 - F(-20,0) < 0 | Q12: 857 | R12: F(-20,0) > 0
B13: 11:35:00 | C13: 1 | D13: 5 | E13: 0 | F13: -25 | G13: 0 | H13: 20 | I13: 21 | J13: 21 | K13: 1 | L13: 0.1423570595 | O13: 122 | P13: G0 - F(-25,0) < 0 | Q13: 857 | R13: F(-25,0) > 0
B14: 11:35:00 | C14: 1 | D14: 6 | E14: 0 | F14: -30 | G14: 0 | H14: 20 | I14: 22 | J14: 22 | K14: 2 | L14: 0.1411901984 | O14: 121 | P14: G0 - F(-30,0) < 0 | Q14: 857 | R14: F(-30,0) > 0
B15: 11:30:00 | C15: 2 | D15: 1 | E15: -5 | F15: -10 | G15: -5 | H15: 20 | I15: 20 | J15: 20 | K15: 0 | L15: 0.1400233372 | M15: =MAX(K15:K20) -> 6 | N15: =MAX(K15:K20)/$Q$1 -> 0.2 | O15: 120 | P15: G-5 - F(-10,-5) < 0 | Q15: 857 | R15: F(-10,-5) > 0
B16: 11:30:00 | C16: 2 | D16: 2 | E16: -5 | F16: -15 | G16: -5 | H16: 20 | I16: 21 | J16: 21 | K16: 1 | L16: 0.1400233372 | O16: 120 | P16: G-5 - F(-15,-5) < 0 | Q16: 857 | R16: F(-15,-5) > 0
B17: 11:30:00 | C17: 2 | D17: 3 | E17: -5 | F17: -20 | G17: -5 | H17: 20 | I17: 21 | J17: 21 | K17: 1 | L17: 0.1388564761 | O17: 119 | P17: G-5 - F(-20,-5) < 0 | Q17: 857 | R17: F(-20,-5) > 0
B18: 11:30:00 | C18: 2 | D18: 4 | E18: -5 | F18: -25 | G18: -5 | H18: 20 | I18: 21 | J18: 21 | K18: 1 | L18: 0.1376896149 | O18: 118 | P18: G-5 - F(-25,-5) < 0 | Q18: 857 | R18: F(-25,-5) > 0
B19: 11:30:00 | C19: 2 | D19: 5 | E19: -5 | F19: -30 | G19: -5 | H19: 20 | I19: 0 | J19: 0 | K19: 0 | L19: 0.1365227538 | O19: 117 | P19: G-5 - F(-30,-5) < 0 | Q19: 857 | R19: F(-30,-5) > 0
B20: 11:30:00 | C20: 2 | D20: 6 | E20: -5 | F20: -35 | G20: -5 | H20: 20 | I20: 26 | J20: 26 | K20: 6 | L20: 0.1365227538 | O20: =IF((H20-J20)<0, O21+1, O21) -> 117 | P20: G-5 - F(-35,-5) < 0 | Q20: 857 | R20: F(-35,-5) > 0
B21: 11:25:00 | C21: 3 | D21: 1 | E21: -10 | F21: -15 | G21: -10 | H21: 20 | I21: 10 | J21: 10 | K21: 0 | L21: 0.1353558926 | M21: =MAX(K21:K26) -> 1 | N21: =MAX(K21:K26)/$Q$1 -> 0.03333333333 | O21: =IF((H21-J21)<0, O22+1, O22) -> 116 | P21: G-10 - F(-15,-10) < 0 | Q21: 857 | R21: F(-15,-10) > 0
B22: 11:25:00 | C22: 3 | D22: 2 | E22: -10 | F22: -20 | G22: -10 | H22: 20 | I22: 10 | J22: 10 | K22: 0 | L22: 0.1353558926 | O22: 116 | P22: G-10 - F(-20,-10) < 0 | Q22: 857 | R22: F(-20,-10) > 0
B23: 11:25:00 | C23: 3 | D23: 3 | E23: -10 | F23: -25 | G23: -10 | H23: 20 | I23: 10 | J23: 10 | K23: 0 | L23: 0.1353558926 | O23: 116 | P23: G-10 - F(-25,-10) < 0 | Q23: 857 | R23: F(-25,-10) > 0
B24: 11:25:00 | C24: 3 | D24: 4 | E24: -10 | F24: -30 | G24: -10 | H24: 20 | I24: 10 | J24: 10 | K24: 0 | L24: 0.1353558926 | O24: 116 | P24: G-10 - F(-30,-10) < 0 | Q24: 857 | R24: F(-30,-10) > 0
B25: 11:25:00 | C25: 3 | D25: 5 | E25: -10 | F25: -35 | G25: -10 | H25: 20 | I25: 10 | J25: 10 | K25: 0 | L25: 0.1353558926 | O25: 116 | P25: G-10 - F(-35,-10) < 0 | Q25: 857 | R25: F(-35,-10) > 0
B26: 11:25:00 | C26: 3 | D26: 6 | E26: -10 | F26: -40 | G26: -10 | H26: 20 | I26: 21 | J26: 21 | K26: 1 | L26: 0.1353558926 | O26: 116 | P26: G-10 - F(-40,-10) < 0 | Q26: 857 | R26: F(-40,-10) > 0
B27: 11:20:00 | C27: 4 | D27: 1 | E27: -15 | F27: -20 | G27: -15 | H27: 20 | I27: 21 | J27: 21 | K27: 1 | L27: 0.1341890315 | M27: =MAX(K27:K32) -> 1 | N27: =MAX(K27:K32)/$Q$1 -> 0.03333333333 | O27: 115 | P27: G-15 - F(-20,-15) < 0 | Q27: 857 | R27: F(-20,-15) > 0
B28: 11:20:00 | C28: 4 | D28: 2 | E28: -15 | F28: -25 | G28: -15 | H28: 20 | I28: 21 | J28: 21 | K28: 1 | L28: 0.1330221704 | O28: 114 | P28: G-15 - F(-25,-15) < 0 | Q28: 857 | R28: F(-25,-15) > 0
B29: 11:20:00 | C29: 4 | D29: 3 | E29: -15 | F29: -30 | G29: -15 | H29: 20 | I29: 21 | J29: 21 | K29: 1 | L29: 0.1318553092 | O29: 113 | P29: G-15 - F(-30,-15) < 0 | Q29: 857 | R29: F(-30,-15) > 0
B30: 11:20:00 | C30: 4 | D30: 4 | E30: -15 | F30: -35 | G30: -15 | H30: 20 | I30: 21 | J30: 21 | K30: 1 | L30: 0.1306884481 | O30: 112 | P30: G-15 - F(-35,-15) < 0 | Q30: 857 | R30: F(-35,-15) > 0
B31: 11:20:00 | C31: 4 | D31: 5 | E31: -15 | F31: -40 | G31: -15 | H31: 20 | I31: 21 | J31: 21 | K31: 1 | L31: 0.1295215869 | O31: 111 | P31: G-15 - F(-40,-15) < 0 | Q31: 857 | R31: F(-40,-15) > 0
B32: 11:20:00 | C32: 4 | D32: 6 | E32: -15 | F32: -45 | G32: -15 | H32: 20 | I32: 21 | J32: 21 | K32: 1 | L32: 0.1283547258 | O32: 110 | P32: G-15 - F(-45,-15) < 0 | Q32: 857 | R32: F(-45,-15) > 0
B33: 11:15:00 | C33: 5 | D33: 1 | E33: -20 | F33: -25 | G33: -20 | H33: 20 | I33: 21 | J33: 21 | K33: 1 | L33: 0.1271878646 | M33: =MAX(K33:K38) -> 1 | N33: =MAX(K33:K38)/$Q$1 -> 0.03333333333 | O33: 109 | P33: G-20 - F(-25,-20) < 0 | Q33: 857 | R33: F(-25,-20) > 0
B34: 11:15:00 | C34: 5 | D34: 2 | E34: -20 | F34: -30 | G34: -20 | H34: 20 | I34: 21 | J34: 21 | K34: 1 | L34: 0.1260210035 | O34: 108 | P34: G-20 - F(-30,-20) < 0 | Q34: 857 | R34: F(-30,-20) > 0
B35: 11:15:00 | C35: 5 | D35: 3 | E35: -20 | F35: -35 | G35: -20 | H35: 20 | I35: 21 | J35: 21 | K35: 1 | L35: 0.1248541424 | O35: 107 | P35: G-20 - F(-35,-20) < 0 | Q35: 857 | R35: F(-35,-20) > 0
B36: 11:15:00 | C36: 5 | D36: 4 | E36: -20 | F36: -40 | G36: -20 | H36: 20 | I36: 21 | J36: 21 | K36: 1 | L36: 0.1236872812 | O36: 106 | P36: G-20 - F(-40,-20) < 0 | Q36: 857 | R36: F(-40,-20) > 0
B37: 11:15:00 | C37: 5 | D37: 5 | E37: -20 | F37: -45 | G37: -20 | H37: 20 | I37: 21 | J37: 21 | K37: 1 | L37: 0.1225204201 | O37: 105 | P37: G-20 - F(-45,-20) < 0 | Q37: 857 | R37: F(-45,-20) > 0
B38: 11:15:00 | C38: 5 | D38: 6 | E38: -20 | F38: -50 | G38: -20 | H38: 20 | I38: 21 | J38: 21 | K38: 1 | L38: 0.1213535589 | O38: 104 | P38: G-20 - F(-50,-20) < 0 | Q38: 857 | R38: F(-50,-20) > 0
B39: 11:10:00 | C39: 6 | D39: 1 | E39: -25 | F39: -30 | G39: -25 | H39: 20 | I39: 21 | J39: 21 | K39: 1 | L39: 0.1201866978 | M39: =MAX(K39:K44) -> 19 | N39: =MAX(K39:K44)/$Q$1 -> 0.6333333333 | O39: 103 | P39: G-25 - F(-30,-25) < 0 | Q39: 857 | R39: F(-30,-25) > 0
B40: 11:10:00 | C40: 6 | D40: 2 | E40: -25 | F40: -35 | G40: -25 | H40: 20 | I40: 21 | J40: 21 | K40: 1 | L40: 0.1190198366 | O40: 102 | P40: G-25 - F(-35,-25) < 0 | Q40: 857 | R40: F(-35,-25) > 0
B41: 11:10:00 | C41: 6 | D41: 3 | E41: -25 | F41: -40 | G41: -25 | H41: 2 | I41: 21 | J41: 21 | K41: 19 | L41: 0.1178529755 | O41: 101 | P41: G-25 - F(-40,-25) < 0 | Q41: 857 | R41: F(-40,-25) > 0
B42: 11:10:00 | C42: 6 | D42: 4 | E42: -25 | F42: -45 | G42: -25 | H42: 20 | I42: 21 | J42: 21 | K42: 1 | L42: 0.1166861144 | O42: 100 | P42: G-25 - F(-45,-25) < 0 | Q42: 857 | R42: F(-45,-25) > 0
B43: 11:10:00 | C43: 6 | D43: 5 | E43: -25 | F43: -50 | G43: -25 | H43: 20 | I43: 21 | J43: 21 | K43: 1 | L43: 0.1155192532 | O43: 99 | P43: G-25 - F(-50,-25) < 0 | Q43: 857 | R43: F(-50,-25) > 0
B44: 11:10:00 | C44: 6 | D44: 6 | E44: -25 | F44: -55 | G44: -25 | H44: 20 | I44: 21 | J44: 21 | K44: 1 | L44: 0.1143523921 | O44: 98 | P44: G-25 - F(-55,-25) < 0 | Q44: 857 | R44: F(-55,-25) > 0
B45: 11:05:00 | C45: 7 | D45: 1 | E45: -30 | F45: -35 | G45: -30 | H45: 20 | I45: 21 | J45: 21 | K45: 1 | L45: 0.1131855309 | M45: =MAX(K45:K50) -> 1 | N45: =MAX(K45:K50)/$Q$1 -> 0.03333333333 | O45: 97 | P45: G-30 - F(-35,-30) < 0 | Q45: 857 | R45: F(-35,-30) > 0
B46: 11:05:00 | C46: 7 | D46: 2 | E46: -30 | F46: -40 | G46: -30 | H46: 20 | I46: 21 | J46: 21 | K46: 1 | L46: 0.1120186698 | O46: 96 | P46: G-30 - F(-40,-30) < 0 | Q46: 857 | R46: F(-40,-30) > 0
B47: 11:05:00 | C47: 7 | D47: 3 | E47: -30 | F47: -45 | G47: -30 | H47: 20 | I47: 21 | J47: 21 | K47: 1 | L47: 0.1108518086 | O47: 95 | P47: G-30 - F(-45,-30) < 0 | Q47: 857 | R47: F(-45,-30) > 0
B48: 11:05:00 | C48: 7 | D48: 4 | E48: -30 | F48: -50 | G48: -30 | H48: 20 | I48: 21 | J48: 21 | K48: 1 | L48: 0.1096849475 | O48: 94 | P48: G-30 - F(-50,-30) < 0 | Q48: 857 | R48: F(-50,-30) > 0
B49: 11:05:00 | C49: 7 | D49: 5 | E49: -30 | F49: -55 | G49: -30 | H49: 20 | I49: 21 | J49: 21 | K49: 1 | L49: 0.1085180863 | O49: 93 | P49: G-30 - F(-55,-30) < 0 | Q49: 857 | R49: F(-55,-30) > 0
B50: 11:05:00 | C50: 7 | D50: 6 | E50: -30 | F50: -60 | G50: -30 | H50: 20 | I50: 21 | J50: 21 | K50: 1 | L50: 0.1073512252 | O50: 92 | P50: G-30 - F(-60,-30) < 0 | Q50: 857 | R50: F(-60,-30) > 0
B51: 11:00:00 | C51: 8 | D51: 1 | E51: -35 | F51: -40 | G51: -35 | H51: 20 | I51: 21 | J51: 21 | K51: 1 | L51: 0.1061843641 | M51: =MAX(K51:K56) -> 1 | N51: =MAX(K51:K56)/$Q$1 -> 0.03333333333 | O51: 91 | P51: G-35 - F(-40,-35) < 0 | Q51: 857 | R51: F(-40,-35) > 0
B52: 11:00:00 | C52: 8 | D52: 2 | E52: -35 | F52: -45 | G52: -35 | H52: 20 | I52: 21 | J52: 21 | K52: 1 | L52: 0.1050175029 | O52: 90 | P52: G-35 - F(-45,-35) < 0 | Q52: 857 | R52: F(-45,-35) > 0
B53: 11:00:00 | C53: 8 | D53: 3 | E53: -35 | F53: -50 | G53: -35 | H53: 20 | I53: 21 | J53: 21 | K53: 1 | L53: 0.1038506418 | O53: 89 | P53: G-35 - F(-50,-35) < 0 | Q53: 857 | R53: F(-50,-35) > 0
B54: 11:00:00 | C54: 8 | D54: 4 | E54: -35 | F54: -55 | G54: -35 | H54: 20 | I54: 21 | J54: 21 | K54: 1 | L54: 0.1026837806 | O54: 88 | P54: G-35 - F(-55,-35) < 0 | Q54: 857 | R54: F(-55,-35) > 0
B55: 11:00:00 | C55: 8 | D55: 5 | E55: -35 | F55: -60 | G55: -35 | H55: 20 | I55: 21 | J55: 21 | K55: 1 | L55: 0.1015169195 | O55: 87 | P55: G-35 - F(-60,-35) < 0 | Q55: 857 | R55: F(-60,-35) > 0
B56: 11:00:00 | C56: 8 | D56: 6 | E56: -35 | F56: -65 | G56: -35 | H56: 20 | I56: 21 | J56: 21 | K56: 1 | L56: 0.1003500583 | O56: 86 | P56: G-35 - F(-65,-35) < 0 | Q56: 857 | R56: F(-65,-35) > 0
B57: 10:55:00 | C57: 9 | D57: 1 | E57: -40 | F57: -45 | G57: -40 | H57: 20 | I57: 21 | J57: 21 | K57: 1 | L57: 0.0991831972 | M57: =MAX(K57:K62) -> 1 | N57: =MAX(K57:K62)/$Q$1 -> 0.03333333333 | O57: 85 | P57: G-40 - F(-45,-40) < 0 | Q57: 857 | R57: F(-45,-40) > 0
B58: 10:55:00 | C58: 9 | D58: 2 | E58: -40 | F58: -50 | G58: -40 | H58: 20 | I58: 21 | J58: 21 | K58: 1 | L58: 0.09801633606 | O58: 84 | P58: G-40 - F(-50,-40) < 0 | Q58: 857 | R58: F(-50,-40) > 0
B59: 10:55:00 | C59: 9 | D59: 3 | E59: -40 | F59: -55 | G59: -40 | H59: 20 | I59: 21 | J59: 21 | K59: 1 | L59: 0.09684947491 | O59: 83 | P59: G-40 - F(-55,-40) < 0 | Q59: 857 | R59: F(-55,-40) > 0
B60: 10:55:00 | C60: 9 | D60: 4 | E60: -40 | F60: -60 | G60: -40 | H60: 20 | I60: 21 | J60: 21 | K60: 1 | L60: 0.09568261377 | O60: 82 | P60: G-40 - F(-60,-40) < 0 | Q60: 857 | R60: F(-60,-40) > 0
B61: 10:55:00 | C61: 9 | D61: 5 | E61: -40 | F61: -65 | G61: -40 | H61: 20 | I61: 21 | J61: 21 | K61: 1 | L61: 0.09451575263 | O61: 81 | P61: G-40 - F(-65,-40) < 0 | Q61: 857 | R61: F(-65,-40) > 0
B62: 10:55:00 | C62: 9 | D62: 6 | E62: -40 | F62: -70 | G62: -40 | H62: 20 | I62: 21 | J62: 21 | K62: 1 | L62: 0.09334889148 | O62: 80 | P62: G-40 - F(-70,-40) < 0 | Q62: 857 | R62: F(-70,-40) > 0
B63: 10:50:00 | C63: 10 | D63: 1 | E63: -45 | F63: -50 | G63: -45 | H63: 20 | I63: 21 | J63: 21 | K63: 1 | L63: 0.09218203034 | M63: =MAX(K63:K68) -> 1 | N63: =MAX(K63:K68)/$Q$1 -> 0.03333333333 | O63: 79 | P63: G-45 - F(-50,-45) < 0 | Q63: 857 | R63: F(-50,-45) > 0
B64: 10:50:00 | C64: 10 | D64: 2 | E64: -45 | F64: -55 | G64: -45 | H64: 20 | I64: 21 | J64: 21 | K64: 1 | L64: 0.09101516919 | O64: 78 | P64: G-45 - F(-55,-45) < 0 | Q64: 857 | R64: F(-55,-45) > 0
B65: 10:50:00 | C65: 10 | D65: 3 | E65: -45 | F65: -60 | G65: -45 | H65: 20 | I65: 21 | J65: 21 | K65: 1 | L65: 0.08984830805 | O65: 77 | P65: G-45 - F(-60,-45) < 0 | Q65: 857 | R65: F(-60,-45) > 0
B66: 10:50:00 | C66: 10 | D66: 4 | E66: -45 | F66: -65 | G66: -45 | H66: 20 | I66: 21 | J66: 21 | K66: 1 | L66: 0.08868144691 | O66: 76 | P66: G-45 - F(-65,-45) < 0 | Q66: 857 | R66: F(-65,-45) > 0
B67: 10:50:00 | C67: 10 | D67: 5 | E67: -45 | F67: -70 | G67: -45 | H67: 20 | I67: 21 | J67: 21 | K67: 1 | L67: 0.08751458576 | O67: 75 | P67: G-45 - F(-70,-45) < 0 | Q67: 857 | R67: F(-70,-45) > 0
B68: 10:50:00 | C68: 10 | D68: 6 | E68: -45 | F68: -75 | G68: -45 | H68: 20 | I68: 21 | J68: 21 | K68: 1 | L68: 0.08634772462 | O68: 74 | P68: G-45 - F(-75,-45) < 0 | Q68: 857 | R68: F(-75,-45) > 0
B69: 10:45:00 | C69: 11 | D69: 1 | E69: -50 | F69: -55 | G69: -50 | H69: 20 | I69: 21 | J69: 21 | K69: 1 | L69: 0.08518086348 | M69: =MAX(K69:K74) -> 1 | N69: =MAX(K69:K74)/$Q$1 -> 0.03333333333 | O69: 73 | P69: G-50 - F(-55,-50) < 0 | Q69: 857 | R69: F(-55,-50) > 0
B70: 10:45:00 | C70: 11 | D70: 2 | E70: -50 | F70: -60 | G70: -50 | H70: 20 | I70: 21 | J70: 21 | K70: 1 | L70: 0.08401400233 | O70: 72 | P70: G-50 - F(-60,-50) < 0 | Q70: 857 | R70: F(-60,-50) > 0
B71: 10:45:00 | C71: 11 | D71: 3 | E71: -50 | F71: -65 | G71: -50 | H71: 20 | I71: 21 | J71: 21 | K71: 1 | L71: 0.08284714119 | O71: 71 | P71: G-50 - F(-65,-50) < 0 | Q71: 857 | R71: F(-65,-50) > 0
B72: 10:45:00 | C72: 11 | D72: 4 | E72: -50 | F72: -70 | G72: -50 | H72: 20 | I72: 21 | J72: 21 | K72: 1 | L72: 0.08168028005 | O72: 70 | P72: G-50 - F(-70,-50) < 0 | Q72: 857 | R72: F(-70,-50) > 0
B73: 10:45:00 | C73: 11 | D73: 5 | E73: -50 | F73: -75 | G73: -50 | H73: 20 | I73: 21 | J73: 21 | K73: 1 | L73: =O73/Q73 -> 0.0805134189 | O73: 69 | P73: G-50 - F(-75,-50) < 0 | Q73: 857 | R73: F(-75,-50) > 0
B74: 10:45:00 | C74: 11 | D74: 6 | E74: -50 | F74: =-(5*C74-5+5*D74) -> -80 | G74: =-(5*C74-5) -> -50 | H74: 20 | I74: 21 | J74: =I74-($J$1*I74) -> 21 | K74: =IF((J74-H74) < 0, 0, J74-H74) -> 1 | L74: 0.07934655776 | O74: 68 | P74: G-50 - F(-80,-50) < 0 | Q74: =$Q$6 -> 857 | R74: F(-80,-50) > 0
B75: 10:40:00 | C75: 12 | D75: 1 | E75: -55 | F75: -60 | G75: -55 | H75: 20 | I75: 21 | J75: 21 | K75: 1 | L75: 0.07817969662 | M75: =MAX(K75:K80) -> 1 | N75: =MAX(K75:K80)/$Q$1 -> 0.03333333333 | O75: 67 | P75: G-55 - F(-60,-55) < 0 | Q75: 857 | R75: F(-60,-55) > 0
B76: 10:40:00 | C76: 12 | D76: 2 | E76: -55 | F76: -65 | G76: -55 | H76: 20 | I76: 21 | J76: 21 | K76: 1 | L76: 0.07701283547 | O76: 66 | P76: G-55 - F(-65,-55) < 0 | Q76: 857 | R76: F(-65,-55) > 0
B77: 10:40:00 | C77: 12 | D77: 3 | E77: -55 | F77: -70 | G77: -55 | H77: 20 | I77: 21 | J77: 21 | K77: 1 | L77: 0.07584597433 | O77: 65 | P77: G-55 - F(-70,-55) < 0 | Q77: 857 | R77: F(-70,-55) > 0
B78: 10:40:00 | C78: 12 | D78: 4 | E78: -55 | F78: -75 | G78: -55 | H78: 20 | I78: 21 | J78: 21 | K78: 1 | L78: 0.07467911319 | O78: 64 | P78: G-55 - F(-75,-55) < 0 | Q78: 857 | R78: F(-75,-55) > 0
B79: 10:40:00 | C79: 12 | D79: 5 | E79: -55 | F79: -80 | G79: -55 | H79: 20 | I79: 21 | J79: 21 | K79: 1 | L79: 0.07351225204 | O79: 63 | P79: G-55 - F(-80,-55) < 0 | Q79: 857 | R79: F(-80,-55) > 0
B80: 10:40:00 | C80: 12 | D80: 6 | E80: -55 | F80: -85 | G80: -55 | H80: 20 | I80: 21 | J80: 21 | K80: 1 | L80: 0.0723453909 | O80: 62 | P80: G-55 - F(-85,-55) < 0 | Q80: 857 | R80: F(-85,-55) > 0
B81: 10:35:00 | C81: 13 | D81: 1 | E81: -60 | F81: -65 | G81: -60 | H81: 20 | I81: 21 | J81: 21 | K81: 1 | L81: 0.07117852975 | M81: =MAX(K81:K86) -> 1 | N81: =MAX(K81:K86)/$Q$1 -> 0.03333333333 | O81: 61 | P81: G-60 - F(-65,-60) < 0 | Q81: 857 | R81: F(-65,-60) > 0
B82: 10:35:00 | C82: 13 | D82: 2 | E82: -60 | F82: -70 | G82: -60 | H82: 20 | I82: 21 | J82: 21 | K82: 1 | L82: 0.07001166861 | O82: 60 | P82: G-60 - F(-70,-60) < 0 | Q82: 857 | R82: F(-70,-60) > 0
B83: 10:35:00 | C83: 13 | D83: 3 | E83: -60 | F83: -75 | G83: -60 | H83: 20 | I83: 21 | J83: 21 | K83: 1 | L83: 0.06884480747 | O83: 59 | P83: G-60 - F(-75,-60) < 0 | Q83: 857 | R83: F(-75,-60) > 0
B84: 10:35:00 | C84: 13 | D84: 4 | E84: -60 | F84: -80 | G84: -60 | H84: 20 | I84: 21 | J84: 21 | K84: 1 | L84: 0.06767794632 | O84: 58 | P84: G-60 - F(-80,-60) < 0 | Q84: 857 | R84: F(-80,-60) > 0
B85: 10:35:00 | C85: 13 | D85: 5 | E85: -60 | F85: -85 | G85: -60 | H85: 20 | I85: 21 | J85: 21 | K85: 1 | L85: 0.06651108518 | O85: =IF((H85-J85)<0, O86+1, O86) -> 57 | P85: G-60 - F(-85,-60) < 0 | Q85: 857 | R85: F(-85,-60) > 0
B86: 10:35:00 | C86: 13 | D86: 6 | E86: -60 | F86: -90 | G86: -60 | H86: 20 | I86: 21 | J86: 21 | K86: 1 | L86: 0.06534422404 | O86: 56 | P86: G-60 - F(-90,-60) < 0 | Q86: 857 | R86: F(-90,-60) > 0
B87: 10:30:00 | C87: 14 | D87: 1 | E87: -65 | F87: -70 | G87: -65 | H87: 20 | I87: 21 | J87: 21 | K87: 1 | L87: 0.06417736289 | M87: =MAX(K87:K92) -> 1 | N87: =MAX(K87:K92)/$Q$1 -> 0.03333333333 | O87: 55 | P87: G-65 - F(-70,-65) < 0 | Q87: 857 | R87: F(-70,-65) > 0
B88: 10:30:00 | C88: 14 | D88: 2 | E88: -65 | F88: -75 | G88: -65 | H88: 20 | I88: 21 | J88: 21 | K88: 1 | L88: 0.06301050175 | O88: 54 | P88: G-65 - F(-75,-65) < 0 | Q88: 857 | R88: F(-75,-65) > 0
B89: 10:30:00 | C89: 14 | D89: 3 | E89: -65 | F89: -80 | G89: -65 | H89: 20 | I89: 21 | J89: 21 | K89: 1 | L89: 0.06184364061 | O89: 53 | P89: G-65 - F(-80,-65) < 0 | Q89: 857 | R89: F(-80,-65) > 0
B90: 10:30:00 | C90: 14 | D90: 4 | E90: -65 | F90: -85 | G90: -65 | H90: 20 | I90: 21 | J90: 21 | K90: 1 | L90: 0.06067677946 | O90: 52 | P90: G-65 - F(-85,-65) < 0 | Q90: 857 | R90: F(-85,-65) > 0
B91: 10:30:00 | C91: 14 | D91: 5 | E91: -65 | F91: -90 | G91: -65 | H91: 20 | I91: 21 | J91: 21 | K91: 1 | L91: 0.05950991832 | O91: 51 | P91: G-65 - F(-90,-65) < 0 | Q91: 857 | R91: F(-90,-65) > 0
B92: 10:30:00 | C92: 14 | D92: 6 | E92: -65 | F92: -95 | G92: -65 | H92: 20 | I92: 21 | J92: 21 | K92: 1 | L92: 0.05834305718 | O92: 50 | P92: G-65 - F(-95,-65) < 0 | Q92: 857 | R92: F(-95,-65) > 0
B93: 10:25:00 | C93: 15 | D93: 1 | E93: -70 | F93: -75 | G93: -70 | H93: 20 | I93: 21 | J93: 21 | K93: 1 | L93: 0.05717619603 | M93: =MAX(K93:K98) -> 1 | N93: =MAX(K93:K98)/$Q$1 -> 0.03333333333 | O93: 49 | P93: G-70 - F(-75,-70) < 0 | Q93: 857 | R93: F(-75,-70) > 0
B94: 10:25:00 | C94: 15 | D94: 2 | E94: -70 | F94: -80 | G94: -70 | H94: 20 | I94: 21 | J94: 21 | K94: 1 | L94: 0.05600933489 | O94: 48 | P94: G-70 - F(-80,-70) < 0 | Q94: 857 | R94: F(-80,-70) > 0
B95: 10:25:00 | C95: 15 | D95: 3 | E95: -70 | F95: -85 | G95: -70 | H95: 20 | I95: 21 | J95: 21 | K95: 1 | L95: 0.05484247375 | O95: 47 | P95: G-70 - F(-85,-70) < 0 | Q95: 857 | R95: F(-85,-70) > 0
B96: 10:25:00 | C96: 15 | D96: 4 | E96: -70 | F96: -90 | G96: -70 | H96: 20 | I96: 21 | J96: 21 | K96: 1 | L96: 0.0536756126 | O96: 46 | P96: G-70 - F(-90,-70) < 0 | Q96: 857 | R96: F(-90,-70) > 0
B97: 10:25:00 | C97: 15 | D97: 5 | E97: -70 | F97: -95 | G97: -70 | H97: 20 | I97: 21 | J97: 21 | K97: 1 | L97: 0.05250875146 | O97: 45 | P97: G-70 - F(-95,-70) < 0 | Q97: 857 | R97: F(-95,-70) > 0
B98: 10:25:00 | C98: 15 | D98: 6 | E98: -70 | F98: -100 | G98: -70 | H98: 20 | I98: 21 | J98: 21 | K98: 1 | L98: 0.05134189032 | O98: 44 | P98: G-70 - F(-100,-70) < 0 | Q98: 857 | R98: F(-100,-70) > 0
B99: 10:20:00 | C99: 16 | D99: 1 | E99: -75 | F99: -80 | G99: -75 | H99: 20 | I99: 21 | J99: 21 | K99: 1 | L99: 0.05017502917 | M99: =MAX(K99:K104) -> 1 | N99: =MAX(K99:K104)/$Q$1 -> 0.03333333333 | O99: 43 | P99: G-75 - F(-80,-75) < 0 | Q99: 857 | R99: F(-80,-75) > 0
B100: 10:20:00 | C100: 16 | D100: 2 | E100: -75 | F100: -85 | G100: -75 | H100: 20 | I100: 21 | J100: 21 | K100: 1 | L100: 0.04900816803 | O100: 42 | P100: G-75 - F(-85,-75) < 0 | Q100: 857 | R100: F(-85,-75) > 0
B101: 10:20:00 | C101: 16 | D101: 3 | E101: -75 | F101: -90 | G101: -75 | H101: 20 | I101: 21 | J101: 21 | K101: 1 | L101: 0.04784130688 | O101: 41 | P101: G-75 - F(-90,-75) < 0 | Q101: 857 | R101: F(-90,-75) > 0
B102: 10:20:00 | C102: 16 | D102: 4 | E102: -75 | F102: -95 | G102: -75 | H102: 20 | I102: 21 | J102: 21 | K102: 1 | L102: 0.04667444574 | O102: 40 | P102: G-75 - F(-95,-75) < 0 | Q102: 857 | R102: F(-95,-75) > 0
B103: 10:20:00 | C103: 16 | D103: 5 | E103: -75 | F103: -100 | G103: -75 | H103: 20 | I103: 21 | J103: 21 | K103: 1 | L103: 0.0455075846 | O103: 39 | P103: G-75 - F(-100,-75) < 0 | Q103: 857 | R103: F(-100,-75) > 0
B104: 10:20:00 | C104: 16 | D104: 6 | E104: -75 | F104: -105 | G104: -75 | H104: 20 | I104: 21 | J104: 21 | K104: 1 | L104: 0.04434072345 | O104: 38 | P104: G-75 - F(-105,-75) < 0 | Q104: 857 | R104: F(-105,-75) > 0
B105: 10:15:00 | C105: 17 | D105: 1 | E105: -80 | F105: -85 | G105: -80 | H105: 20 | I105: 21 | J105: 21 | K105: 1 | L105: 0.04317386231 | M105: =MAX(K105:K110) -> 1 | N105: =MAX(K105:K110)/$Q$1 -> 0.03333333333 | O105: 37 | P105: G-80 - F(-85,-80) < 0 | Q105: 857 | R105: F(-85,-80) > 0
B106: 10:15:00 | C106: 17 | D106: 2 | E106: -80 | F106: -90 | G106: -80 | H106: 20 | I106: 21 | J106: 21 | K106: 1 | L106: 0.04200700117 | O106: 36 | P106: G-80 - F(-90,-80) < 0 | Q106: 857 | R106: F(-90,-80) > 0
B107: 10:15:00 | C107: 17 | D107: 3 | E107: -80 | F107: -95 | G107: -80 | H107: 20 | I107: 21 | J107: 21 | K107: 1 | L107: 0.04084014002 | O107: 35 | P107: G-80 - F(-95,-80) < 0 | Q107: 857 | R107: F(-95,-80) > 0
B108: 10:15:00 | C108: 17 | D108: 4 | E108: -80 | F108: -100 | G108: -80 | H108: 20 | I108: 21 | J108: 21 | K108: 1 | L108: 0.03967327888 | O108: 34 | P108: G-80 - F(-100,-80) < 0 | Q108: 857 | R108: F(-100,-80) > 0
B109: 10:15:00 | C109: 17 | D109: 5 | E109: -80 | F109: -105 | G109: -80 | H109: 20 | I109: 21 | J109: 21 | K109: 1 | L109: 0.03850641774 | O109: 33 | P109: G-80 - F(-105,-80) < 0 | Q109: 857 | R109: F(-105,-80) > 0
B110: 10:15:00 | C110: 17 | D110: 6 | E110: -80 | F110: -110 | G110: -80 | H110: 20 | I110: 21 | J110: 21 | K110: 1 | L110: 0.03733955659 | O110: 32 | P110: G-80 - F(-110,-80) < 0 | Q110: 857 | R110: F(-110,-80) > 0
B111: 10:10:00 | C111: 18 | D111: 1 | E111: -85 | F111: -90 | G111: -85 | H111: 20 | I111: 21 | J111: 21 | K111: 1 | L111: 0.03617269545 | M111: =MAX(K111:K116) -> 1 | N111: =MAX(K111:K116)/$Q$1 -> 0.03333333333 | O111: 31 | P111: G-85 - F(-90,-85) < 0 | Q111: 857 | R111: F(-90,-85) > 0
B112: 10:10:00 | C112: 18 | D112: 2 | E112: -85 | F112: -95 | G112: -85 | H112: 20 | I112: 21 | J112: 21 | K112: 1 | L112: 0.03500583431 | O112: 30 | P112: G-85 - F(-95,-85) < 0 | Q112: 857 | R112: F(-95,-85) > 0
B113: 10:10:00 | C113: 18 | D113: 3 | E113: -85 | F113: -100 | G113: -85 | H113: 20 | I113: 21 | J113: 21 | K113: 1 | L113: 0.03383897316 | O113: 29 | P113: G-85 - F(-100,-85) < 0 | Q113: 857 | R113: F(-100,-85) > 0
B114: 10:10:00 | C114: 18 | D114: 4 | E114: -85 | F114: -105 | G114: -85 | H114: 20 | I114: 21 | J114: 21 | K114: 1 | L114: 0.03267211202 | O114: 28 | P114: G-85 - F(-105,-85) < 0 | Q114: 857 | R114: F(-105,-85) > 0
B115: 10:10:00 | C115: 18 | D115: 5 | E115: -85 | F115: -110 | G115: -85 | H115: 20 | I115: 21 | J115: 21 | K115: 1 | L115: 0.03150525088 | O115: 27 | P115: G-85 - F(-110,-85) < 0 | Q115: 857 | R115: F(-110,-85) > 0
B116: 10:10:00 | C116: 18 | D116: 6 | E116: -85 | F116: -115 | G116: -85 | H116: 20 | I116: 21 | J116: 21 | K116: 1 | L116: 0.03033838973 | O116: 26 | P116: G-85 - F(-115,-85) < 0 | Q116: 857 | R116: F(-115,-85) > 0
B117: 10:05:00 | C117: 19 | D117: 1 | E117: -90 | F117: -95 | G117: -90 | H117: 20 | I117: 21 | J117: 21 | K117: 1 | L117: 0.02917152859 | M117: =MAX(K117:K122) -> 1 | N117: =MAX(K117:K122)/$Q$1 -> 0.03333333333 | O117: 25 | P117: G-90 - F(-95,-90) < 0 | Q117: 857 | R117: F(-95,-90) > 0
B118: 10:05:00 | C118: 19 | D118: 2 | E118: -90 | F118: -100 | G118: -90 | H118: 20 | I118: 21 | J118: 21 | K118: 1 | L118: 0.02800466744 | O118: 24 | P118: G-90 - F(-100,-90) < 0 | Q118: 857 | R118: F(-100,-90) > 0
B119: 10:05:00 | C119: 19 | D119: 3 | E119: -90 | F119: -105 | G119: -90 | H119: 20 | I119: 21 | J119: 21 | K119: 1 | L119: 0.0268378063 | O119: 23 | P119: G-90 - F(-105,-90) < 0 | Q119: 857 | R119: F(-105,-90) > 0
B120: 10:05:00 | C120: 19 | D120: 4 | E120: -90 | F120: -110 | G120: -90 | H120: 20 | I120: 21 | J120: 21 | K120: 1 | L120: 0.02567094516 | O120: 22 | P120: G-90 - F(-110,-90) < 0 | Q120: 857 | R120: F(-110,-90) > 0
B121: 10:05:00 | C121: 19 | D121: 5 | E121: -90 | F121: -115 | G121: -90 | H121: 20 | I121: 21 | J121: 21 | K121: 1 | L121: 0.02450408401 | O121: 21 | P121: G-90 - F(-115,-90) < 0 | Q121: 857 | R121: F(-115,-90) > 0
B122: 10:05:00 | C122: 19 | D122: 6 | E122: -90 | F122: -120 | G122: -90 | H122: 20 | I122: 21 | J122: 21 | K122: 1 | L122: 0.02333722287 | O122: 20 | P122: G-90 - F(-120,-90) < 0 | Q122: 857 | R122: F(-120,-90) > 0
B123: 10:00:00 | C123: 20 | D123: 1 | E123: -95 | F123: -100 | G123: -95 | H123: 20 | I123: 21 | J123: 21 | K123: 1 | L123: 0.02217036173 | M123: =MAX(K123:K128) -> 1 | N123: =MAX(K123:K128)/$Q$1 -> 0.03333333333 | O123: 19 | P123: G-95 - F(-100,-95) < 0 | Q123: 857 | R123: F(-100,-95) > 0
B124: 10:00:00 | C124: 20 | D124: 2 | E124: -95 | F124: -105 | G124: -95 | H124: 20 | I124: 21 | J124: 21 | K124: 1 | L124: 0.02100350058 | O124: 18 | P124: G-95 - F(-105,-95) < 0 | Q124: 857 | R124: F(-105,-95) > 0
B125: 10:00:00 | C125: 20 | D125: 3 | E125: -95 | F125: -110 | G125: -95 | H125: 20 | I125: 21 | J125: 21 | K125: 1 | L125: 0.01983663944 | O125: 17 | P125: G-95 - F(-110,-95) < 0 | Q125: 857 | R125: F(-110,-95) > 0
B126: 10:00:00 | C126: 20 | D126: 4 | E126: -95 | F126: -115 | G126: -95 | H126: 20 | I126: 21 | J126: 21 | K126: 1 | L126: 0.0186697783 | O126: 16 | P126: G-95 - F(-115,-95) < 0 | Q126: 857 | R126: F(-115,-95) > 0
B127: 10:00:00 | C127: 20 | D127: 5 | E127: -95 | F127: -120 | G127: -95 | H127: 20 | I127: 21 | J127: 21 | K127: 1 | L127: 0.01750291715 | O127: 15 | P127: G-95 - F(-120,-95) < 0 | Q127: 857 | R127: F(-120,-95) > 0
B128: 10:00:00 | C128: 20 | D128: 6 | E128: -95 | F128: -125 | G128: -95 | H128: 20 | I128: 21 | J128: 21 | K128: 1 | L128: 0.01633605601 | O128: 14 | P128: G-95 - F(-125,-95) < 0 | Q128: 857 | R128: F(-125,-95) > 0
B129: 09:55:00 | C129: 21 | D129: 1 | E129: -100 | F129: -105 | G129: -100 | H129: 20 | I129: 21 | J129: 21 | K129: 1 | L129: 0.01516919487 | M129: =MAX(K129:K134) -> 1 | N129: =MAX(K129:K134)/$Q$1 -> 0.03333333333 | O129: 13 | P129: G-100 - F(-105,-100) < 0 | Q129: 857 | R129: F(-105,-100) > 0
B130: 09:55:00 | C130: 21 | D130: 2 | E130: -100 | F130: -110 | G130: -100 | H130: 20 | I130: 21 | J130: 21 | K130: 1 | L130: 0.01400233372 | O130: 12 | P130: G-100 - F(-110,-100) < 0 | Q130: 857 | R130: F(-110,-100) > 0
B131: 09:55:00 | C131: 21 | D131: 3 | E131: -100 | F131: -115 | G131: -100 | H131: 20 | I131: 21 | J131: 21 | K131: 1 | L131: 0.01283547258 | O131: 11 | P131: G-100 - F(-115,-100) < 0 | Q131: 857 | R131: F(-115,-100) > 0
B132: 09:55:00 | C132: 21 | D132: 4 | E132: -100 | F132: -120 | G132: -100 | H132: 20 | I132: 21 | J132: 21 | K132: 1 | L132: 0.01166861144 | O132: 10 | P132: G-100 - F(-120,-100) < 0 | Q132: 857 | R132: F(-120,-100) > 0
B133: 09:55:00 | C133: 21 | D133: 5 | E133: -100 | F133: -125 | G133: -100 | H133: 20 | I133: 21 | J133: 21 | K133: 1 | L133: 0.01050175029 | O133: 9 | P133: G-100 - F(-125,-100) < 0 | Q133: 857 | R133: F(-125,-100) > 0
B134: 09:55:00 | C134: 21 | D134: 6 | E134: -100 | F134: -130 | G134: -100 | H134: 20 | I134: 21 | J134: 21 | K134: 1 | L134: 0.009334889148 | O134: 8 | P134: G-100 - F(-130,-100) < 0 | Q134: 857 | R134: F(-130,-100) > 0
B135: 09:50:00 | C135: 22 | D135: 1 | E135: -105 | F135: -110 | G135: -105 | H135: 20 | I135: 21 | J135: 21 | K135: 1 | L135: 0.008168028005 | M135: =MAX(K135:K140) -> 1 | N135: =MAX(K135:K140)/$Q$1 -> 0.03333333333 | O135: 7 | P135: G-105 - F(-110,-105) < 0 | Q135: 857 | R135: F(-110,-105) > 0
B136: 09:50:00 | C136: 22 | D136: 2 | E136: -105 | F136: -115 | G136: -105 | H136: 20 | I136: 21 | J136: 21 | K136: 1 | L136: 0.007001166861 | O136: 6 | P136: G-105 - F(-115,-105) < 0 | Q136: 857 | R136: F(-115,-105) > 0
B137: 09:50:00 | C137: 22 | D137: 3 | E137: -105 | F137: -120 | G137: -105 | H137: 20 | I137: 21 | J137: 21 | K137: 1 | L137: =O137/Q137 -> 0.005834305718 | O137: 5 | P137: G-105 - F(-120,-105) < 0 | Q137: 857 | R137: F(-120,-105) > 0
B138: 09:50:00 | C138: 22 | D138: 4 | E138: -105 | F138: =-(5*C138-5+5*D138) -> -125 | G138: =-(5*C138-5) -> -105 | H138: 20 | I138: 21 | J138: =I138-($J$1*I138) -> 21 | K138: =IF((J138-H138) < 0, 0, J138-H138) -> 1 | L138: 0.004667444574 | O138: 4 | P138: G-105 - F(-125,-105) < 0 | Q138: =$Q$6 -> 857 | R138: F(-125,-105) > 0
B139: 09:50:00 | C139: 22 | D139: 5 | E139: -105 | F139: -130 | G139: -105 | H139: 20 | I139: 10 | J139: 10 | K139: 0 | L139: 0.003500583431 | O139: 3 | P139: G-105 - F(-130,-105) < 0 | Q139: 857 | R139: F(-130,-105) > 0
B140: 09:50:00 | C140: 22 | D140: 6 | E140: -105 | F140: -135 | G140: -105 | H140: 20 | I140: 10 | J140: 10 | K140: 0 | L140: 0.003500583431 | O140: 3 | P140: G-105 - F(-135,-105) < 0 | Q140: 857 | R140: F(-135,-105) > 0
B141: 09:45:00 | C141: 23 | D141: 1 | E141: -110 | F141: -115 | G141: -110 | H141: 20 | I141: 10 | J141: 10 | K141: 0 | L141: 0.003500583431 | M141: =MAX(K141:K146) -> 0 | N141: =MAX(K141:K146)/$Q$1 -> 0 | O141: 3 | P141: G-110 - F(-115,-110) < 0 | Q141: 857 | R141: F(-115,-110) > 0
B142: 09:45:00 | C142: 23 | D142: 2 | E142: -110 | F142: -120 | G142: -110 | H142: 20 | I142: 10 | J142: 10 | K142: 0 | L142: 0.003500583431 | O142: 3 | P142: G-110 - F(-120,-110) < 0 | Q142: 857 | R142: F(-120,-110) > 0
B143: 09:45:00 | C143: 23 | D143: 3 | E143: -110 | F143: -125 | G143: -110 | H143: 20 | I143: 10 | J143: 10 | K143: 0 | L143: 0.003500583431 | O143: 3 | P143: G-110 - F(-125,-110) < 0 | Q143: 857 | R143: F(-125,-110) > 0
B144: 09:45:00 | C144: 23 | D144: 4 | E144: -110 | F144: -130 | G144: -110 | H144: 20 | I144: 10 | J144: 10 | K144: 0 | L144: 0.003500583431 | O144: 3 | P144: G-110 - F(-130,-110) < 0 | Q144: 857 | R144: F(-130,-110) > 0
B145: 09:45:00 | C145: 23 | D145: 5 | E145: -110 | F145: -135 | G145: -110 | H145: 20 | I145: 10 | J145: 10 | K145: 0 | L145: 0.003500583431 | O145: 3 | P145: G-110 - F(-135,-110) < 0 | Q145: 857 | R145: F(-135,-110) > 0
B146: 09:45:00 | C146: 23 | D146: 6 | E146: -110 | F146: -140 | G146: -110 | H146: 20 | I146: 10 | J146: 10 | K146: 0 | L146: 0.003500583431 | O146: 3 | P146: G-110 - F(-140,-110) < 0 | Q146: 857 | R146: F(-140,-110) > 0
B147: 09:40:00 | C147: 24 | D147: 1 | E147: -115 | F147: -120 | G147: -115 | H147: 20 | I147: 10 | J147: 10 | K147: 0 | L147: 0.003500583431 | M147: =MAX(K147:K152) -> 0 | N147: =MAX(K147:K152)/$Q$1 -> 0 | O147: 3 | P147: G-115 - F(-120,-115) < 0 | Q147: 857 | R147: F(-120,-115) > 0
B148: 09:40:00 | C148: 24 | D148: 2 | E148: -115 | F148: -125 | G148: -115 | H148: 20 | I148: 10 | J148: 10 | K148: 0 | L148: 0.003500583431 | O148: 3 | P148: G-115 - F(-125,-115) < 0 | Q148: 857 | R148: F(-125,-115) > 0
B149: 09:40:00 | C149: 24 | D149: 3 | E149: -115 | F149: -130 | G149: -115 | H149: 20 | I149: 10 | J149: 10 | K149: 0 | L149: 0.003500583431 | O149: =IF((H149-J149)<0, O150+1, O150) -> 3 | P149: G-115 - F(-130,-115) < 0 | Q149: 857 | R149: F(-130,-115) > 0
B150: 09:40:00 | C150: 24 | D150: 4 | E150: -115 | F150: -135 | G150: -115 | H150: 20 | I150: 10 | J150: 10 | K150: 0 | L150: 0.003500583431 | O150: 3 | P150: G-115 - F(-135,-115) < 0 | Q150: 857 | R150: F(-135,-115) > 0
B151: 09:40:00 | C151: 24 | D151: 5 | E151: -115 | F151: -140 | G151: -115 | H151: 20 | I151: 10 | J151: 10 | K151: 0 | L151: 0.003500583431 | O151: 3 | P151: G-115 - F(-140,-115) < 0 | Q151: 857 | R151: F(-140,-115) > 0
B152: 09:40:00 | C152: 24 | D152: 6 | E152: -115 | F152: -145 | G152: -115 | H152: 20 | I152: 10 | J152: 10 | K152: 0 | L152: 0.003500583431 | O152: 3 | P152: G-115 - F(-145,-115) < 0 | Q152: 857 | R152: F(-145,-115) > 0
B153: 09:35:00 | C153: 25 | D153: 1 | E153: -120 | F153: -125 | G153: -120 | H153: 20 | I153: 10 | J153: 10 | K153: 0 | L153: 0.003500583431 | M153: =MAX(K153:K158) -> 0 | N153: =MAX(K153:K158)/$Q$1 -> 0 | O153: 3 | P153: G-120 - F(-125,-120) < 0 | Q153: 857 | R153: F(-125,-120) > 0
B154: 09:35:00 | C154: 25 | D154: 2 | E154: -120 | F154: -130 | G154: -120 | H154: 20 | I154: 10 | J154: 10 | K154: 0 | L154: 0.003500583431 | O154: 3 | P154: G-120 - F(-130,-120) < 0 | Q154: 857 | R154: F(-130,-120) > 0
B155: 09:35:00 | C155: 25 | D155: 3 | E155: -120 | F155: -135 | G155: -120 | H155: 20 | I155: 10 | J155: 10 | K155: 0 | L155: 0.003500583431 | O155: 3 | P155: G-120 - F(-135,-120) < 0 | Q155: 857 | R155: F(-135,-120) > 0
B156: 09:35:00 | C156: 25 | D156: 4 | E156: -120 | F156: -140 | G156: -120 | H156: 20 | I156: 10 | J156: 10 | K156: 0 | L156: 0.003500583431 | O156: 3 | P156: G-120 - F(-140,-120) < 0 | Q156: 857 | R156: F(-140,-120) > 0
B157: 09:35:00 | C157: 25 | D157: 5 | E157: -120 | F157: -145 | G157: -120 | H157: 20 | I157: 10 | J157: 10 | K157: 0 | L157: 0.003500583431 | O157: 3 | P157: G-120 - F(-145,-120) < 0 | Q157: 857 | R157: F(-145,-120) > 0
B158: 09:35:00 | C158: 25 | D158: 6 | E158: -120 | F158: -150 | G158: -120 | H158: 20 | I158: 10 | J158: 10 | K158: 0 | L158: 0.003500583431 | O158: 3 | P158: G-120 - F(-150,-120) < 0 | Q158: 857 | R158: F(-150,-120) > 0
B159: 09:30:00 | C159: 26 | D159: 1 | E159: -125 | F159: -130 | G159: -125 | H159: 20 | I159: 10 | J159: 10 | K159: 0 | L159: 0.003500583431 | M159: =MAX(K159:K164) -> 0 | N159: =MAX(K159:K164)/$Q$1 -> 0 | O159: 3 | P159: G-125 - F(-130,-125) < 0 | Q159: 857 | R159: F(-130,-125) > 0
B160: 09:30:00 | C160: 26 | D160: 2 | E160: -125 | F160: -135 | G160: -125 | H160: 20 | I160: 10 | J160: 10 | K160: 0 | L160: 0.003500583431 | O160: 3 | P160: G-125 - F(-135,-125) < 0 | Q160: 857 | R160: F(-135,-125) > 0
B161: 09:30:00 | C161: 26 | D161: 3 | E161: -125 | F161: -140 | G161: -125 | H161: 20 | I161: 10 | J161: 10 | K161: 0 | L161: 0.003500583431 | O161: 3 | P161: G-125 - F(-140,-125) < 0 | Q161: 857 | R161: F(-140,-125) > 0
B162: 09:30:00 | C162: 26 | D162: 4 | E162: -125 | F162: -145 | G162: -125 | H162: 20 | I162: 10 | J162: 10 | K162: 0 | L162: 0.003500583431 | O162: 3 | P162: G-125 - F(-145,-125) < 0 | Q162: 857 | R162: F(-145,-125) > 0
B163: 09:30:00 | C163: 26 | D163: 5 | E163: -125 | F163: -150 | G163: -125 | H163: 20 | I163: 10 | J163: 10 | K163: 0 | L163: 0.003500583431 | O163: 3 | P163: G-125 - F(-150,-125) < 0 | Q163: 857 | R163: F(-150,-125) > 0
B164: 09:30:00 | C164: 26 | D164: 6 | E164: -125 | F164: -155 | G164: -125 | H164: 20 | I164: 10 | J164: 10 | K164: 0 | L164: 0.003500583431 | O164: 3 | P164: G-125 - F(-155,-125) < 0 | Q164: 857 | R164: F(-155,-125) > 0
B165: 09:25:00 | C165: 27 | D165: 1 | E165: -130 | F165: -135 | G165: -130 | H165: 20 | I165: 10 | J165: 10 | K165: 0 | L165: 0.003500583431 | M165: =MAX(K165:K170) -> 0 | N165: =MAX(K165:K170)/$Q$1 -> 0 | O165: 3 | P165: G-130 - F(-135,-130) < 0 | Q165: 857 | R165: F(-135,-130) > 0
B166: 09:25:00 | C166: 27 | D166: 2 | E166: -130 | F166: -140 | G166: -130 | H166: 20 | I166: 10 | J166: 10 | K166: 0 | L166: 0.003500583431 | O166: 3 | P166: G-130 - F(-140,-130) < 0 | Q166: 857 | R166: F(-140,-130) > 0
B167: 09:25:00 | C167: 27 | D167: 3 | E167: -130 | F167: -145 | G167: -130 | H167: 20 | I167: 10 | J167: 10 | K167: 0 | L167: 0.003500583431 | O167: 3 | P167: G-130 - F(-145,-130) < 0 | Q167: 857 | R167: F(-145,-130) > 0
B168: 09:25:00 | C168: 27 | D168: 4 | E168: -130 | F168: -150 | G168: -130 | H168: 20 | I168: 10 | J168: 10 | K168: 0 | L168: 0.003500583431 | O168: 3 | P168: G-130 - F(-150,-130) < 0 | Q168: 857 | R168: F(-150,-130) > 0
B169: 09:25:00 | C169: 27 | D169: 5 | E169: -130 | F169: -155 | G169: -130 | H169: 20 | I169: 10 | J169: 10 | K169: 0 | L169: 0.003500583431 | O169: 3 | P169: G-130 - F(-155,-130) < 0 | Q169: 857 | R169: F(-155,-130) > 0
B170: 09:25:00 | C170: 27 | D170: 6 | E170: -130 | F170: -160 | G170: -130 | H170: 20 | I170: 10 | J170: 10 | K170: 0 | L170: 0.003500583431 | O170: 3 | P170: G-130 - F(-160,-130) < 0 | Q170: 857 | R170: F(-160,-130) > 0
B171: 09:20:00 | C171: 28 | D171: 1 | E171: -135 | F171: -140 | G171: -135 | H171: 20 | I171: 10 | J171: 10 | K171: 0 | L171: 0.003500583431 | M171: =MAX(K171:K176) -> 0 | N171: =MAX(K171:K176)/$Q$1 -> 0 | O171: 3 | P171: G-135 - F(-140,-135) < 0 | Q171: 857 | R171: F(-140,-135) > 0
B172: 09:20:00 | C172: 28 | D172: 2 | E172: -135 | F172: -145 | G172: -135 | H172: 20 | I172: 10 | J172: 10 | K172: 0 | L172: 0.003500583431 | O172: 3 | P172: G-135 - F(-145,-135) < 0 | Q172: 857 | R172: F(-145,-135) > 0
B173: 09:20:00 | C173: 28 | D173: 3 | E173: -135 | F173: -150 | G173: -135 | H173: 20 | I173: 10 | J173: 10 | K173: 0 | L173: 0.003500583431 | O173: 3 | P173: G-135 - F(-150,-135) < 0 | Q173: 857 | R173: F(-150,-135) > 0
B174: 09:20:00 | C174: 28 | D174: 4 | E174: -135 | F174: -155 | G174: -135 | H174: 20 | I174: 10 | J174: 10 | K174: 0 | L174: 0.003500583431 | O174: 3 | P174: G-135 - F(-155,-135) < 0 | Q174: 857 | R174: F(-155,-135) > 0
B175: 09:20:00 | C175: 28 | D175: 5 | E175: -135 | F175: -160 | G175: -135 | H175: 20 | I175: 10 | J175: 10 | K175: 0 | L175: 0.003500583431 | O175: 3 | P175: G-135 - F(-160,-135) < 0 | Q175: 857 | R175: F(-160,-135) > 0
B176: 09:20:00 | C176: 28 | D176: 6 | E176: -135 | F176: -165 | G176: -135 | H176: 20 | I176: 10 | J176: 10 | K176: 0 | L176: 0.003500583431 | O176: 3 | P176: G-135 - F(-165,-135) < 0 | Q176: 857 | R176: F(-165,-135) > 0
B177: 09:15:00 | C177: 29 | D177: 1 | E177: -140 | F177: -145 | G177: -140 | H177: 20 | I177: 10 | J177: 10 | K177: 0 | L177: 0.003500583431 | M177: =MAX(K177:K182) -> 8 | N177: =MAX(K177:K182)/$Q$1 -> 0.2666666667 | O177: 3 | P177: G-140 - F(-145,-140) < 0 | Q177: 857 | R177: F(-145,-140) > 0
B178: 09:15:00 | C178: 29 | D178: 2 | E178: -140 | F178: -150 | G178: -140 | H178: 20 | I178: 10 | J178: 10 | K178: 0 | L178: 0.003500583431 | O178: 3 | P178: G-140 - F(-150,-140) < 0 | Q178: 857 | R178: F(-150,-140) > 0
B179: 09:15:00 | C179: 29 | D179: 3 | E179: -140 | F179: -155 | G179: -140 | H179: 2 | I179: 10 | J179: 10 | K179: 8 | L179: 0.003500583431 | O179: 3 | P179: G-140 - F(-155,-140) < 0 | Q179: 857 | R179: F(-155,-140) > 0
B180: 09:15:00 | C180: 29 | D180: 4 | E180: -140 | F180: -160 | G180: -140 | H180: 20 | I180: 10 | J180: 10 | K180: 0 | L180: 0.002333722287 | O180: 2 | P180: G-140 - F(-160,-140) < 0 | Q180: 857 | R180: F(-160,-140) > 0
B181: 09:15:00 | C181: 29 | D181: 5 | E181: -140 | F181: -165 | G181: -140 | H181: 20 | I181: 10 | J181: 10 | K181: 0 | L181: 0.002333722287 | O181: 2 | P181: G-140 - F(-165,-140) < 0 | Q181: 857 | R181: F(-165,-140) > 0
B182: 09:15:00 | C182: 29 | D182: 6 | E182: -140 | F182: -170 | G182: -140 | H182: 20 | I182: 10 | J182: 10 | K182: 0 | L182: 0.002333722287 | O182: 2 | P182: G-140 - F(-170,-140) < 0 | Q182: 857 | R182: F(-170,-140) > 0
B183: 09:10:00 | C183: 30 | D183: 1 | E183: -145 | F183: -150 | G183: -145 | H183: 20 | I183: 10 | J183: 10 | K183: 0 | L183: 0.002333722287 | M183: =MAX(K183:K188) -> 0 | N183: =MAX(K183:K188)/$Q$1 -> 0 | O183: 2 | P183: G-145 - F(-150,-145) < 0 | Q183: 857 | R183: F(-150,-145) > 0
B184: 09:10:00 | C184: 30 | D184: 2 | E184: -145 | F184: -155 | G184: -145 | H184: 20 | I184: 10 | J184: 10 | K184: 0 | L184: 0.002333722287 | O184: 2 | P184: G-145 - F(-155,-145) < 0 | Q184: 857 | R184: F(-155,-145) > 0
B185: 09:10:00 | C185: 30 | D185: 3 | E185: -145 | F185: -160 | G185: -145 | H185: 20 | I185: 10 | J185: 10 | K185: 0 | L185: 0.002333722287 | O185: 2 | P185: G-145 - F(-160,-145) < 0 | Q185: 857 | R185: F(-160,-145) > 0
B186: 09:10:00 | C186: 30 | D186: 4 | E186: -145 | F186: -165 | G186: -145 | H186: 20 | I186: 10 | J186: 10 | K186: 0 | L186: 0.002333722287 | O186: 2 | P186: G-145 - F(-165,-145) < 0 | Q186: 857 | R186: F(-165,-145) > 0
B187: 09:10:00 | C187: 30 | D187: 5 | E187: -145 | F187: -170 | G187: -145 | H187: 20 | I187: 10 | J187: 10 | K187: 0 | L187: 0.002333722287 | O187: 2 | P187: G-145 - F(-170,-145) < 0 | Q187: 857 | R187: F(-170,-145) > 0
B188: 09:10:00 | C188: 30 | D188: 6 | E188: -145 | F188: -175 | G188: -145 | H188: 20 | I188: 10 | J188: 10 | K188: 0 | L188: 0.002333722287 | O188: 2 | P188: G-145 - F(-175,-145) < 0 | Q188: 857 | R188: F(-175,-145) > 0
B189: 09:05:00 | C189: 31 | D189: 1 | E189: -150 | F189: -155 | G189: -150 | H189: 20 | I189: 10 | J189: 10 | K189: 0 | L189: 0.002333722287 | M189: =MAX(K189:K194) -> 0 | N189: =MAX(K189:K194)/$Q$1 -> 0 | O189: 2 | P189: G-150 - F(-155,-150) < 0 | Q189: 857 | R189: F(-155,-150) > 0
B190: 09:05:00 | C190: 31 | D190: 2 | E190: -150 | F190: -160 | G190: -150 | H190: 20 | I190: 10 | J190: 10 | K190: 0 | L190: 0.002333722287 | O190: 2 | P190: G-150 - F(-160,-150) < 0 | Q190: 857 | R190: F(-160,-150) > 0
B191: 09:05:00 | C191: 31 | D191: 3 | E191: -150 | F191: -165 | G191: -150 | H191: 20 | I191: 10 | J191: 10 | K191: 0 | L191: 0.002333722287 | O191: 2 | P191: G-150 - F(-165,-150) < 0 | Q191: 857 | R191: F(-165,-150) > 0
B192: 09:05:00 | C192: 31 | D192: 4 | E192: -150 | F192: -170 | G192: -150 | H192: 20 | I192: 10 | J192: 10 | K192: 0 | L192: 0.002333722287 | O192: 2 | P192: G-150 - F(-170,-150) < 0 | Q192: 857 | R192: F(-170,-150) > 0
B193: 09:05:00 | C193: 31 | D193: 5 | E193: -150 | F193: -175 | G193: -150 | H193: 20 | I193: 10 | J193: 10 | K193: 0 | L193: 0.002333722287 | O193: 2 | P193: G-150 - F(-175,-150) < 0 | Q193: 857 | R193: F(-175,-150) > 0
B194: 09:05:00 | C194: 31 | D194: 6 | E194: -150 | F194: -180 | G194: -150 | H194: 20 | I194: 10 | J194: 10 | K194: 0 | L194: 0.002333722287 | O194: 2 | P194: G-150 - F(-180,-150) < 0 | Q194: 857 | R194: F(-180,-150) > 0
B195: 09:00:00 | C195: 32 | D195: 1 | E195: -155 | F195: -160 | G195: -155 | H195: 20 | I195: 10 | J195: 10 | K195: 0 | L195: 0.002333722287 | M195: =MAX(K195:K200) -> 0 | N195: =MAX(K195:K200)/$Q$1 -> 0 | O195: 2 | P195: G-155 - F(-160,-155) < 0 | Q195: 857 | R195: F(-160,-155) > 0
B196: 09:00:00 | C196: 32 | D196: 2 | E196: -155 | F196: -165 | G196: -155 | H196: 20 | I196: 10 | J196: 10 | K196: 0 | L196: 0.002333722287 | O196: 2 | P196: G-155 - F(-165,-155) < 0 | Q196: 857 | R196: F(-165,-155) > 0
B197: 09:00:00 | C197: 32 | D197: 3 | E197: -155 | F197: -170 | G197: -155 | H197: 20 | I197: 10 | J197: 10 | K197: 0 | L197: 0.002333722287 | O197: 2 | P197: G-155 - F(-170,-155) < 0 | Q197: 857 | R197: F(-170,-155) > 0
B198: 09:00:00 | C198: 32 | D198: 4 | E198: -155 | F198: -175 | G198: -155 | H198: 20 | I198: 10 | J198: 10 | K198: 0 | L198: 0.002333722287 | O198: 2 | P198: G-155 - F(-175,-155) < 0 | Q198: 857 | R198: F(-175,-155) > 0
B199: 09:00:00 | C199: 32 | D199: 5 | E199: -155 | F199: -180 | G199: -155 | H199: 20 | I199: 10 | J199: 10 | K199: 0 | L199: 0.002333722287 | O199: 2 | P199: G-155 - F(-180,-155) < 0 | Q199: 857 | R199: F(-180,-155) > 0
B200: 09:00:00 | C200: 32 | D200: 6 | E200: -155 | F200: -185 | G200: -155 | H200: 20 | I200: 10 | J200: 10 | K200: 0 | L200: 0.002333722287 | O200: 2 | P200: G-155 - F(-185,-155) < 0 | Q200: 857 | R200: F(-185,-155) > 0
B201: 08:55:00 | C201: 33 | D201: 1 | E201: -160 | F201: -165 | G201: -160 | H201: 20 | I201: 10 | J201: 10 | K201: 0 | L201: =O201/Q201 -> 0.002333722287 | M201: =MAX(K201:K206) -> 0 | N201: =MAX(K201:K206)/$Q$1 -> 0 | O201: 2 | P201: G-160 - F(-165,-160) < 0 | Q201: 857 | R201: F(-165,-160) > 0
B202: 08:55:00 | C202: 33 | D202: 2 | E202: -160 | F202: =-(5*C202-5+5*D202) -> -170 | G202: =-(5*C202-5) -> -160 | H202: 20 | I202: 10 | J202: =I202-($J$1*I202) -> 10 | K202: =IF((J202-H202) < 0, 0, J202-H202) -> 0 | L202: 0.002333722287 | O202: 2 | P202: G-160 - F(-170,-160) < 0 | Q202: =$Q$6 -> 857 | R202: F(-170,-160) > 0
... 1534 more rows
